{"text_format":"3","workbook":"xlsx","n_sheets":2,"sheets":["RSVP Tracker","RSVP Summary"],"not_rendered":{"charts":2,"defined_names":22},"read":"whole","date_system":"1900"}

{"sheet":"RSVP Tracker","index":0,"n_rows":15,"n_cols":15,"rows_kept":15,"merged":[[0,3,0,4],[0,5,0,7],[1,3,1,14]]}
[{"$nulls":5},"PRAŠYMO ATSAKYTI SUVESTINĖ"]
[null,"VESTUVIŲ DATA",null,"vestuvių kvietimų sekimo priemonė"]
[null,{"$f":"TODAY()+283","v":"2018-12-01"},null,"SVEČIO VARDAS","SIŲSTI?","Prašymas atsakyti","VAKARĖLIS","SVEČIAS","RYŠIAI","ADRESAS","MIESTAS","VALSTYBĖ","PAŠTO INDEKSAS","TELEFONAS","KONTAKTINIS EL. PAŠTO ADRESAS"]
[null,"LIKO DIENŲ",null,"1 vardas","Taip","Taip",1,"1 būsimas sutuoktinis","Brolis","Adresas","Miestas","Valstybė","PAŠTO INDEKSAS","Telefonas","kazkas@pavyzdys.lt"]
[null,{"$f":"DaysRemaining","v":283},null,"2 vardas","Taip","Ne",3,"1 būsimas sutuoktinis","Draugas","Adresas","Miestas","Valstybė","PAŠTO INDEKSAS","Telefonas","kazkas@pavyzdys.lt"]
[null,"DALYVAUJA",null,"3 vardas","Taip","Taip",1,"Kita","Draugas","Adresas","Miestas","Valstybė","PAŠTO INDEKSAS","Telefonas","kazkas@pavyzdys.lt"]
[null,{"$f":"TotalAttending","v":12},null,"4 vardas","Taip","Ne",2,"2 būsimas sutuoktinis","Draugas","Adresas","Miestas","Valstybė","PAŠTO INDEKSAS","Telefonas","kazkas@pavyzdys.lt"]
[null,"NEDALYVAUJA",null,"5 vardas","Taip","Taip",2,"2 būsimas sutuoktinis","Draugas","Adresas","Miestas","Valstybė","PAŠTO INDEKSAS","Telefonas","kazkas@pavyzdys.lt"]
[null,{"$f":"TotalNotAttending","v":6},null,"6 vardas","Taip","Neapsisprendęs",null,"Kita","Draugas","Adresas","Miestas","Valstybė","PAŠTO INDEKSAS","Telefonas","kazkas@pavyzdys.lt"]
[null,"NEAPMOKĖTA",null,"7 vardas","Taip","Taip",2,"2 būsimas sutuoktinis","Draugas","Adresas","Miestas","Valstybė","PAŠTO INDEKSAS","Telefonas","kazkas@pavyzdys.lt"]
[null,{"$f":"OutstandingRSVP","v":1},null,"8 vardas","Taip","Ne",1,"Kita","Draugas","Adresas","Miestas","Valstybė","PAŠTO INDEKSAS","Telefonas","kazkas@pavyzdys.lt"]
[{"$nulls":3},"9 vardas","Taip","Taip",4,"1 būsimas sutuoktinis","Draugas","Adresas","Miestas","Valstybė","PAŠTO INDEKSAS","Telefonas","kazkas@pavyzdys.lt"]
[{"$nulls":3},"10 vardas","Taip","Taip",2,"1 būsimas sutuoktinis","Draugas","Adresas","Miestas","Valstybė","PAŠTO INDEKSAS","Telefonas","kazkas@pavyzdys.lt"]
[{"$nulls":3},"11 vardas","Taip",null,null,"2 būsimas sutuoktinis","Brolis","Adresas","Miestas","Valstybė","PAŠTO INDEKSAS","Telefonas","kazkas@pavyzdys.lt"]
[{"$nulls":3},"IŠ VISO:",{"$f":"COUNTIF('RSVP Tracker'!$E$4:$E$14,\"Yes\")","v":11},{"$f":"COUNTA('RSVP Tracker'!$F$4:$F$14)","v":10},{"$f":"SUBTOTAL(109,tblInvites[VAKARĖLIS])","v":18}]

{"sheet":"RSVP Summary","index":1,"n_rows":11,"n_cols":15,"rows_kept":11,"merged":[[0,3,0,4],[0,5,0,8],[1,3,1,11],[2,3,6,3],[2,4,6,4],[7,3,11,3],[7,4,11,4]]}
[{"$nulls":3},"PRAŠYMO ATSAKYTI SEKIMO ĮRANKIS"]
[null,"VESTUVIŲ DATA",null,"prašymo atsakyti suvestinė",{"$nulls":10},"pastabos"]
[null,{"$f":"WeddingDate","v":"2018-12-01"},null,"TAIP","Jungtinė juostinė diagrama, rodanti prašymo atsakyti teigiamų atsakymų svečių tipus, yra šiame langelyje."]
[null,"LIKO DIENŲ",{"$nulls":3},"KITA",{"$f":"IFERROR(SUMIFS(tblInvites[VAKARĖLIS],tblInvites[SVEČIAS],\"=Other\",tblInvites[Prašymas atsakyti],\"Yes\"),0)","v":1},{"$f":"tblInvites[[#Totals],[SENT?]]","v":11}]
[null,{"$f":"DaysRemaining","v":283},{"$nulls":3},"2 BŪSIMAS SUTUOKTINIS",{"$f":"IFERROR(SUMIFS(tblInvites[VAKARĖLIS],tblInvites[SVEČIAS],\"=Spouse-to-be 2\",tblInvites[Prašymas atsakyti],\"Yes\"),0)","v":4},{"$f":"tblInvites[[#Totals],[SENT?]]","v":11}]
[null,"DALYVAUJA",{"$nulls":3},"1 BŪSIMAS SUTUOKTINIS",{"$f":"IFERROR(SUMIFS(tblInvites[VAKARĖLIS],tblInvites[SVEČIAS],\"=Spouse-to-be 1\",tblInvites[Prašymas atsakyti],\"Yes\"),0)","v":7},{"$f":"tblInvites[[#Totals],[SENT?]]","v":11}]
[null,{"$f":"TotalAttending","v":12}]
[null,"NEDALYVAUJA",null,"NE","Jungtinė juostinė diagrama, rodanti prašymo atsakyti neigiamų atsakymų svečių tipus, yra šiame langelyje."]
[null,{"$f":"TotalNotAttending","v":6},{"$nulls":3},"KITA",{"$f":"IFERROR(SUMIFS(tblInvites[VAKARĖLIS],tblInvites[SVEČIAS],\"=Other\",tblInvites[Prašymas atsakyti],\"No\"),0)","v":1},{"$f":"tblInvites[[#Totals],[SENT?]]","v":11}]
[null,"NEAPMOKĖTA",{"$nulls":3},"2 BŪSIMAS SUTUOKTINIS",{"$f":"IFERROR(SUMIFS(tblInvites[VAKARĖLIS],tblInvites[SVEČIAS],\"=Spouse-to-be 2\",tblInvites[Prašymas atsakyti],\"No\"),0)","v":2},{"$f":"tblInvites[[#Totals],[SENT?]]","v":11}]
[null,{"$f":"OutstandingRSVP","v":1},{"$nulls":3},"1 BŪSIMAS SUTUOKTINIS",{"$f":"IFERROR(SUMIFS(tblInvites[VAKARĖLIS],tblInvites[SVEČIAS],\"=Spouse-to-be 1\",tblInvites[Prašymas atsakyti],\"No\"),0)","v":3},{"$f":"tblInvites[[#Totals],[SENT?]]","v":11}]